Department family,Entity,Date,Expense Type,Expense area,Supplier,Transaction number,AP Amount (�)
Department of Health,NHS Barnsley CCG,31/01/2020,C&M-APMS Contract Value,PRC DELEGATED CO-COMMISSIONING,BARNSLEY HEALTHCARE FEDERATION,30535042,"28,245.87"
Department of Health,NHS Barnsley CCG,31/01/2020,C&M-APMS OOH Opt Outs,PRC DELEGATED CO-COMMISSIONING,BARNSLEY HEALTHCARE FEDERATION,30535042,9.61
Department of Health,NHS Barnsley CCG,31/01/2020,C&M-APMS PCN DES Participation,PRC DELEGATED CO-COMMISSIONING,BARNSLEY HEALTHCARE FEDERATION,30535042,525.63
Department of Health,NHS Barnsley CCG,31/01/2020,C&M-APMS Prem Actual Rent,PRC DELEGATED CO-COMMISSIONING,BARNSLEY HEALTHCARE FEDERATION,30535042,"1,310.42"
Department of Health,NHS Barnsley CCG,31/01/2020,C&M-APMS Prem Rates,PRC DELEGATED CO-COMMISSIONING,BARNSLEY HEALTHCARE FEDERATION,30535042,500.00
Department of Health,NHS Barnsley CCG,31/01/2020,C&M-APMS QOF Aspiration,PRC DELEGATED CO-COMMISSIONING,BARNSLEY HEALTHCARE FEDERATION,30535042,"2,347.18"
Department of Health,NHS Barnsley CCG,31/01/2020,C&M-APMS Contract Value,PRC DELEGATED CO-COMMISSIONING,BARNSLEY HEALTHCARE FEDERATION,30535044,"31,719.61"
Department of Health,NHS Barnsley CCG,31/01/2020,C&M-APMS OOH Opt Outs,PRC DELEGATED CO-COMMISSIONING,BARNSLEY HEALTHCARE FEDERATION,30535044,22.54
Department of Health,NHS Barnsley CCG,31/01/2020,C&M-APMS PCN DES Participation,PRC DELEGATED CO-COMMISSIONING,BARNSLEY HEALTHCARE FEDERATION,30535044,615.93
Department of Health,NHS Barnsley CCG,31/01/2020,C&M-APMS Prem Actual Rent,PRC DELEGATED CO-COMMISSIONING,BARNSLEY HEALTHCARE FEDERATION,30535044,"2,150.00"
Department of Health,NHS Barnsley CCG,31/01/2020,C&M-APMS Prem Healthcentre Rent,PRC DELEGATED CO-COMMISSIONING,BARNSLEY HEALTHCARE FEDERATION,30535044,"7,567.71"
Department of Health,NHS Barnsley CCG,31/01/2020,C&M-APMS Prem Rates,PRC DELEGATED CO-COMMISSIONING,BARNSLEY HEALTHCARE FEDERATION,30535044,503.00
Department of Health,NHS Barnsley CCG,31/01/2020,C&M-APMS Prem Water Rates,PRC DELEGATED CO-COMMISSIONING,BARNSLEY HEALTHCARE FEDERATION,30535044,56.38
Department of Health,NHS Barnsley CCG,31/01/2020,C&M-PMS QOF Aspiration,PRC DELEGATED CO-COMMISSIONING,BARNSLEY HEALTHCARE FEDERATION,30535044,"2,244.77"
Department of Health,NHS Barnsley CCG,31/01/2020,C&M-APMS Contract Value,PRC DELEGATED CO-COMMISSIONING,BARNSLEY HEALTHCARE FEDERATION,30535046,"28,520.93"
Department of Health,NHS Barnsley CCG,31/01/2020,C&M-APMS OOH Opt Outs,PRC DELEGATED CO-COMMISSIONING,BARNSLEY HEALTHCARE FEDERATION,30535046,0.65
Department of Health,NHS Barnsley CCG,31/01/2020,C&M-APMS PCN DES Participation,PRC DELEGATED CO-COMMISSIONING,BARNSLEY HEALTHCARE FEDERATION,30535046,542.52
Department of Health,NHS Barnsley CCG,31/01/2020,C&M-APMS Prem Actual Rent,PRC DELEGATED CO-COMMISSIONING,BARNSLEY HEALTHCARE FEDERATION,30535046,"6,200.00"
Department of Health,NHS Barnsley CCG,31/01/2020,C&M-APMS Prem Rates,PRC DELEGATED CO-COMMISSIONING,BARNSLEY HEALTHCARE FEDERATION,30535046,"1,235.00"
Department of Health,NHS Barnsley CCG,31/01/2020,C&M-PMS QOF Aspiration,PRC DELEGATED CO-COMMISSIONING,BARNSLEY HEALTHCARE FEDERATION,30535046,"2,495.50"
Department of Health,NHS Barnsley CCG,31/01/2020,Clinical&Medical-Commercial Sector,OUT OF HOURS,BARNSLEY HEALTHCARE FEDERATION,30783198,"120,520.57"
Department of Health,NHS Barnsley CCG,31/01/2020,C&M-GP PRACTICE REVENUE - PCTF,LOCAL ENHANCED SERVICES,BARNSLEY HEALTHCARE FEDERATION,30783207,"140,527.50"
Department of Health,NHS Barnsley CCG,31/01/2020,C&M-PMS Practice Transformational Support,COMMISSIONING SCHEMES,BARNSLEY HEALTHCARE FEDERATION,30830077,"54,166.67"
Department of Health,NHS Barnsley CCG,31/01/2020,Clinical&Medical-Clinical Other,INTERMEDIATE CARE,BARNSLEY HEALTHCARE FEDERATION,30830089,"31,000.00"
Department of Health,NHS Barnsley CCG,31/01/2020,C&M-PMS Contract Value,PRC DELEGATED CO-COMMISSIONING,BARNSLEY HEALTHCARE FEDERATION CIC (GOLDTHORPE),30542122,"41,884.36"
Department of Health,NHS Barnsley CCG,31/01/2020,C&M-PMS Out of Hours Opt Outs,PRC DELEGATED CO-COMMISSIONING,BARNSLEY HEALTHCARE FEDERATION CIC (GOLDTHORPE),30542122,13.00
Department of Health,NHS Barnsley CCG,31/01/2020,C&M-PMS PCN DES Participation,PRC DELEGATED CO-COMMISSIONING,BARNSLEY HEALTHCARE FEDERATION CIC (GOLDTHORPE),30542122,804.38
Department of Health,NHS Barnsley CCG,31/01/2020,C&M-PMS Prem Healthcentre Rent,PRC DELEGATED CO-COMMISSIONING,BARNSLEY HEALTHCARE FEDERATION CIC (GOLDTHORPE),30542122,"12,099.61"
Department of Health,NHS Barnsley CCG,31/01/2020,C&M-PMS QOF Aspiration,PRC DELEGATED CO-COMMISSIONING,BARNSLEY HEALTHCARE FEDERATION CIC (GOLDTHORPE),30542122,"3,008.69"
Department of Health,NHS Barnsley CCG,31/12/2019,Hcare Srv Rec Fdtn Trust-Contract Baseline,INTERMEDIATE CARE,BARNSLEY HOSPITAL NHS FOUNDATION TRUST,30276153,"227,319.30 "
Department of Health,NHS Barnsley CCG,31/12/2019,Hcare Srv Rec Fdtn Trust-Contract Baseline,LONG TERM CONDITIONS,BARNSLEY HOSPITAL NHS FOUNDATION TRUST,30276153,"159,064.70 "
Department of Health,NHS Barnsley CCG,31/12/2019,Hcare Srv Rec Fdtn Trust-Contract Baseline,ACUTE COMMISSIONING,BARNSLEY HOSPITAL NHS FOUNDATION TRUST,30276159,"595,384.00 "
Department of Health,NHS Barnsley CCG,31/12/2019,Hcare Srv Rec Fdtn Trust-Contract Baseline,ACUTE COMMISSIONING,BARNSLEY HOSPITAL NHS FOUNDATION TRUST,30276163,"12,959,478.00 "
Department of Health,NHS Barnsley CCG,31/12/2019,Hcare Srv Rec Fdtn Trust-CQUIN,ACUTE COMMISSIONING,BARNSLEY HOSPITAL NHS FOUNDATION TRUST,30412274,"1,027,661.26 "
Department of Health,NHS Barnsley CCG,31/12/2019,Hcare Srv Rec Fdtn Trust-Contract Baseline,ACUTE COMMISSIONING,BARNSLEY HOSPITAL NHS FOUNDATION TRUST,30412274,"2,474,310.03 "
Department of Health,NHS Barnsley CCG,31/01/2020,Clinical&Medical-Othe Public Sector,CHILD AND ADOLESCENT MENTAL HEALTH,BARNSLEY METROPOLITAN BOROUGH COUNCIL,30479601,"51,945.00"
Department of Health,NHS Barnsley CCG,31/01/2020,Clinical&Medical-Othe Public Sector,COMMISSIONING - NON ACUTE,BARNSLEY METROPOLITAN BOROUGH COUNCIL,30479601,"193,835.24"
Department of Health,NHS Barnsley CCG,31/01/2020,Clinical&Medical-Othe Public Sector,COMMUNITY SERVICES,BARNSLEY METROPOLITAN BOROUGH COUNCIL,30479601,"32,984.17"
Department of Health,NHS Barnsley CCG,31/01/2020,Local AuthorityRevenue-Non-Contract,COMMUNITY SERVICES,BARNSLEY METROPOLITAN BOROUGH COUNCIL,30479601,"-4,875.00"
Department of Health,NHS Barnsley CCG,31/01/2020,Soc Care-Other Soc Care,COMMUNITY SERVICES,BARNSLEY METROPOLITAN BOROUGH COUNCIL,30479601,"502,446.17"
Department of Health,NHS Barnsley CCG,31/01/2020,Soc Care-Other Soc Care,INTERMEDIATE CARE,BARNSLEY METROPOLITAN BOROUGH COUNCIL,30479601,"-364,000.00"
Department of Health,NHS Barnsley CCG,31/01/2020,Soc Care-Re-ablement services,COMMUNITY SERVICES,BARNSLEY METROPOLITAN BOROUGH COUNCIL,30479601,"195,691.25"
Department of Health,NHS Barnsley CCG,31/01/2020,Social Care-Res Long Stay Exp,LONG TERM CONDITIONS,BARNSLEY METROPOLITAN BOROUGH COUNCIL,30479601,"433,879.92"
Department of Health,NHS Barnsley CCG,31/01/2020,Social Care-Res Short Stay Exp,COMMUNITY SERVICES,BARNSLEY METROPOLITAN BOROUGH COUNCIL,30479601,"68,708.25"
Department of Health,NHS Barnsley CCG,31/01/2020,Services From Local Authorities,CONTINUING HEALTHCARE ASSESSMENT & SUPPORT,BARNSLEY METROPOLITAN BOROUGH COUNCIL,30498741,"29,622.00"
Department of Health,NHS Barnsley CCG,31/01/2020,Services From Local Authorities,CONTINUING HEALTHCARE ASSESSMENT & SUPPORT,BARNSLEY METROPOLITAN BOROUGH COUNCIL,30498964,"-29,622.00"
Department of Health,NHS Barnsley CCG,31/01/2020,Clinical&Medical-Othe Public Sector,CHILD AND ADOLESCENT MENTAL HEALTH,BARNSLEY METROPOLITAN BOROUGH COUNCIL,30830111,"51,945.00"
Department of Health,NHS Barnsley CCG,31/01/2020,Clinical&Medical-Othe Public Sector,COMMISSIONING - NON ACUTE,BARNSLEY METROPOLITAN BOROUGH COUNCIL,30830111,"193,836.00"
Department of Health,NHS Barnsley CCG,31/01/2020,Clinical&Medical-Othe Public Sector,COMMUNITY SERVICES,BARNSLEY METROPOLITAN BOROUGH COUNCIL,30830111,"32,984.00"
Department of Health,NHS Barnsley CCG,31/01/2020,Local AuthorityRevenue-Non-Contract,COMMUNITY SERVICES,BARNSLEY METROPOLITAN BOROUGH COUNCIL,30830111,"-4,875.00"
Department of Health,NHS Barnsley CCG,31/01/2020,Soc Care-Other Soc Care,COMMUNITY SERVICES,BARNSLEY METROPOLITAN BOROUGH COUNCIL,30830111,"137,586.00"
Department of Health,NHS Barnsley CCG,31/01/2020,Soc Care-Re-ablement services,COMMUNITY SERVICES,BARNSLEY METROPOLITAN BOROUGH COUNCIL,30830111,"195,691.00"
Department of Health,NHS Barnsley CCG,31/01/2020,Social Care-Res Long Stay Exp,LONG TERM CONDITIONS,BARNSLEY METROPOLITAN BOROUGH COUNCIL,30830111,"433,880.00"
Department of Health,NHS Barnsley CCG,31/01/2020,Social Care-Res Short Stay Exp,COMMUNITY SERVICES,BARNSLEY METROPOLITAN BOROUGH COUNCIL,30830111,"68,708.00"
Department of Health,NHS Barnsley CCG,31/01/2020,Clinical&Medical-Othe Public Sector,LEARNING DIFFICULTIES,BARNSLEY METROPOLITAN BOROUGH COUNCIL,30864139,"17,909.64"
Department of Health,NHS Barnsley CCG,31/01/2020,Clinical&Medical-Othe Public Sector,Mental Health Services - S117 Mental Health,BARNSLEY METROPOLITAN BOROUGH COUNCIL,30864139,611.30
Department of Health,NHS Barnsley CCG,31/01/2020,Cont Care- Palliative Care,CHC AD FULL FUND PERS HLTH BUD,BARNSLEY METROPOLITAN BOROUGH COUNCIL,30864139,"6,459.86"
Department of Health,NHS Barnsley CCG,31/01/2020,Cont Care- Prior Year Payments,CHC AD FULL FUND PERS HLTH BUD,BARNSLEY METROPOLITAN BOROUGH COUNCIL,30864139,"4,575.20"
Department of Health,NHS Barnsley CCG,31/01/2020,Cont Care- Prior Year Payments,CHC AD JNT FUND PERS HLTH BUD,BARNSLEY METROPOLITAN BOROUGH COUNCIL,30864139,"20,017.06"
Department of Health,NHS Barnsley CCG,31/01/2020,Cont Care- Prior Year Payments,CHC ADULT FULLY FUNDED,BARNSLEY METROPOLITAN BOROUGH COUNCIL,30864139,"2,081.69"
Department of Health,NHS Barnsley CCG,31/01/2020,Cont Care- Prior Year Payments,CHC ADULT JOINT FUNDED,BARNSLEY METROPOLITAN BOROUGH COUNCIL,30864139,"75,229.68"
Department of Health,NHS Barnsley CCG,31/01/2020,Cont Care-Interim Funding(Pre Panel),CHC ADULT FULLY FUNDED,BARNSLEY METROPOLITAN BOROUGH COUNCIL,30864139,"51,636.54"
Department of Health,NHS Barnsley CCG,31/01/2020,Cont Care-Learning Disab(65+),CHC AD FULL FUND PERS HLTH BUD,BARNSLEY METROPOLITAN BOROUGH COUNCIL,30864139,"24,019.41"
Department of Health,NHS Barnsley CCG,31/01/2020,Cont Care-Learning Disab(65+),CHC AD JNT FUND PERS HLTH BUD,BARNSLEY METROPOLITAN BOROUGH COUNCIL,30864139,"1,336.24"
Department of Health,NHS Barnsley CCG,31/01/2020,Cont Care-Learning Disab(65+),CHC ADULT FULLY FUNDED,BARNSLEY METROPOLITAN BOROUGH COUNCIL,30864139,"41,404.47"
Department of Health,NHS Barnsley CCG,31/01/2020,Cont Care-Learning Disab(65+),CHC ADULT JOINT FUNDED,BARNSLEY METROPOLITAN BOROUGH COUNCIL,30864139,"10,807.15"
Department of Health,NHS Barnsley CCG,31/01/2020,Cont Care-Learning Disab(<65),CHC AD FULL FUND PERS HLTH BUD,BARNSLEY METROPOLITAN BOROUGH COUNCIL,30864139,"253,665.85"
Department of Health,NHS Barnsley CCG,31/01/2020,Cont Care-Learning Disab(<65),CHC AD JNT FUND PERS HLTH BUD,BARNSLEY METROPOLITAN BOROUGH COUNCIL,30864139,"113,285.20"
Department of Health,NHS Barnsley CCG,31/01/2020,Cont Care-Learning Disab(<65),CHC ADULT FULLY FUNDED,BARNSLEY METROPOLITAN BOROUGH COUNCIL,30864139,"61,237.97"
Department of Health,NHS Barnsley CCG,31/01/2020,Cont Care-Learning Disab(<65),CHC ADULT JOINT FUNDED,BARNSLEY METROPOLITAN BOROUGH COUNCIL,30864139,"179,766.49"
Department of Health,NHS Barnsley CCG,31/01/2020,Cont Care-Mental Health (65+),CHC AD FULL FUND PERS HLTH BUD,BARNSLEY METROPOLITAN BOROUGH COUNCIL,30864139,"17,265.02"
Department of Health,NHS Barnsley CCG,31/01/2020,Cont Care-Mental Health (65+),CHC AD JNT FUND PERS HLTH BUD,BARNSLEY METROPOLITAN BOROUGH COUNCIL,30864139,"2,972.16"
Department of Health,NHS Barnsley CCG,31/01/2020,Cont Care-Mental Health (65+),CHC ADULT JOINT FUNDED,BARNSLEY METROPOLITAN BOROUGH COUNCIL,30864139,"8,425.70"
Department of Health,NHS Barnsley CCG,31/01/2020,Cont Care-Physical Disab (65+),CHC AD FULL FUND PERS HLTH BUD,BARNSLEY METROPOLITAN BOROUGH COUNCIL,30864139,"43,046.44"
Department of Health,NHS Barnsley CCG,31/01/2020,Cont Care-Physical Disab (65+),CHC AD JNT FUND PERS HLTH BUD,BARNSLEY METROPOLITAN BOROUGH COUNCIL,30864139,"22,600.13"
Department of Health,NHS Barnsley CCG,31/01/2020,Cont Care-Physical Disab (65+),CHC ADULT JOINT FUNDED,BARNSLEY METROPOLITAN BOROUGH COUNCIL,30864139,"5,061.42"
Department of Health,NHS Barnsley CCG,31/01/2020,Cont Care-Physical Disab (<65),CHC AD FULL FUND PERS HLTH BUD,BARNSLEY METROPOLITAN BOROUGH COUNCIL,30864139,"489,043.96"
Department of Health,NHS Barnsley CCG,31/01/2020,Cont Care-Physical Disab (<65),CHC ADULT FULLY FUNDED,BARNSLEY METROPOLITAN BOROUGH COUNCIL,30864139,"10,834.31"
Department of Health,NHS Barnsley CCG,31/01/2020,Cont Care-Physical Disab (<65),CHC ADULT JOINT FUNDED,BARNSLEY METROPOLITAN BOROUGH COUNCIL,30864139,255.45
Department of Health,NHS Barnsley CCG,31/01/2020,Cont Care-Funded Nursing Care Allow,FUNDED NURSING CARE,BARNSLEY METROPOLITAN BOROUGH COUNCIL,30864222,"121,757.49"
Department of Health,NHS Barnsley CCG,31/01/2020,Cont Care-Interim Funding(Pre Panel),CHC ADULT FULLY FUNDED,BARNSLEY METROPOLITAN BOROUGH COUNCIL,30864222,662.24
Department of Health,NHS Barnsley CCG,31/01/2020,Cont Care-Interim Funding(Pre Panel),FUNDED NURSING CARE,BARNSLEY METROPOLITAN BOROUGH COUNCIL,30864222,"2,175.93"
Department of Health,NHS Barnsley CCG,31/01/2020,Cont Care-Physical Disab (<65),CHC ADULT JOINT FUNDED,BARNSLEY METROPOLITAN BOROUGH COUNCIL,30864222,969.70
Department of Health,NHS Barnsley CCG,31/01/2020,C&M-GMS DES Extended Hours Access,PRC DELEGATED CO-COMMISSIONING,BHF - PCN,30809063,"31,961.73"
Department of Health,NHS Barnsley CCG,31/01/2020,C&M-GMS PCN DES Clinical Director,PRC DELEGATED CO-COMMISSIONING,BHF - PCN,30809063,"14,948.43"
Department of Health,NHS Barnsley CCG,31/01/2020,Clinical&Medical-Commercial Sector,ACUTE COMMISSIONING,BMI HEALTHCARE LTD,30498838,"29,370.48"
Department of Health,NHS Barnsley CCG,31/01/2020,C&M-GMS DES Learn Dsblty Hlth Chk,PRC DELEGATED CO-COMMISSIONING,NHS BARNSLEY CCG GP PRACTICE,30803805,"1,260.00"
Department of Health,NHS Barnsley CCG,31/01/2020,C&M-GMS DES Minor Surgery,PRC DELEGATED CO-COMMISSIONING,NHS BARNSLEY CCG GP PRACTICE,30803805,"1,619.56"
Department of Health,NHS Barnsley CCG,31/01/2020,C&M-GMS Global Sum,PRC DELEGATED CO-COMMISSIONING,NHS BARNSLEY CCG GP PRACTICE,30803805,"96,189.71"
Department of Health,NHS Barnsley CCG,31/01/2020,C&M-GMS PCN DES Participation,PRC DELEGATED CO-COMMISSIONING,NHS BARNSLEY CCG GP PRACTICE,30803805,"1,946.09"
Department of Health,NHS Barnsley CCG,31/01/2020,C&M-GMS Prem Actual Rent,PRC DELEGATED CO-COMMISSIONING,NHS BARNSLEY CCG GP PRACTICE,30803805,"12,500.00"
Department of Health,NHS Barnsley CCG,31/01/2020,C&M-GMS Prem Healthcentre Rent,PRC DELEGATED CO-COMMISSIONING,NHS BARNSLEY CCG GP PRACTICE,30803805,"3,276.92"
Department of Health,NHS Barnsley CCG,31/01/2020,C&M-GMS Prem Rates,PRC DELEGATED CO-COMMISSIONING,NHS BARNSLEY CCG GP PRACTICE,30803805,"1,560.00"
Department of Health,NHS Barnsley CCG,31/01/2020,C&M-GMS QOF Aspiration,PRC DELEGATED CO-COMMISSIONING,NHS BARNSLEY CCG GP PRACTICE,30803805,"9,600.36"
Department of Health,NHS Barnsley CCG,31/01/2020,Clinical&Medical-Commercial Sector,ACUTE COMMISSIONING,CLAREMONT HOSPITAL,30619124,"33,040.00"
Department of Health,NHS Barnsley CCG,31/01/2020,Soc Care-Bed-Based Int Care Servs,INTERMEDIATE CARE,CROWN CARE (IV) LTD,30504009,"26,792.86"
Department of Health,NHS Barnsley CCG,31/01/2020,Soc Care-Bed-Based Int Care Servs,INTERMEDIATE CARE,CROWN CARE (IV) LTD,30864102,"26,792.86"
Department of Health,NHS Barnsley CCG,31/01/2020,Clinical&Medical-Commercial Sector,LEARNING DIFFICULTIES,CYGNET (DH) LTD,30456190,"33,480.00"
Department of Health,NHS Barnsley CCG,31/01/2020,C&M-GMS DES Minor Surgery,PRC DELEGATED CO-COMMISSIONING,NHS BARNSLEY CCG GP PRACTICE,30799007,"1,548.53"
Department of Health,NHS Barnsley CCG,31/01/2020,C&M-GMS Global Sum,PRC DELEGATED CO-COMMISSIONING,NHS BARNSLEY CCG GP PRACTICE,30799007,"87,528.91"
Department of Health,NHS Barnsley CCG,31/01/2020,C&M-GMS PCN DES Participation,PRC DELEGATED CO-COMMISSIONING,NHS BARNSLEY CCG GP PRACTICE,30799007,"1,756.95"
Department of Health,NHS Barnsley CCG,31/01/2020,C&M-GMS Prem Healthcentre Rent,PRC DELEGATED CO-COMMISSIONING,NHS BARNSLEY CCG GP PRACTICE,30799007,"27,043.66"
Department of Health,NHS Barnsley CCG,31/01/2020,C&M-GMS QOF Aspiration,PRC DELEGATED CO-COMMISSIONING,NHS BARNSLEY CCG GP PRACTICE,30799007,"8,149.07"
Department of Health,NHS Barnsley CCG,31/12/2019,Hcare Srv Rec Fdtn Trust-CQUIN,ACUTE COMMISSIONING,DONCASTER AND BASSETLAW HOSPITALS NHS FOUNDATION TRUST,30412285,"2,483.00 "
Department of Health,NHS Barnsley CCG,31/12/2019,Hcare Srv Rec Fdtn Trust-Contract Baseline,ACUTE COMMISSIONING,DONCASTER AND BASSETLAW HOSPITALS NHS FOUNDATION TRUST,30412285,"432,508.00 "
Department of Health,NHS Barnsley CCG,31/01/2020,C&M-PMS Contract Value,PRC DELEGATED CO-COMMISSIONING,NHS BARNSLEY CCG GP PRACTICE,30535019,"92,790.98"
Department of Health,NHS Barnsley CCG,31/01/2020,C&M-PMS Out of Hours Opt Outs,PRC DELEGATED CO-COMMISSIONING,NHS BARNSLEY CCG GP PRACTICE,30535019,29.73
Department of Health,NHS Barnsley CCG,31/01/2020,C&M-PMS PCN DES Participation,PRC DELEGATED CO-COMMISSIONING,NHS BARNSLEY CCG GP PRACTICE,30535019,"1,811.14"
Department of Health,NHS Barnsley CCG,31/01/2020,C&M-PMS PCO Other,PRC DELEGATED CO-COMMISSIONING,NHS BARNSLEY CCG GP PRACTICE,30535019,646.50
Department of Health,NHS Barnsley CCG,31/01/2020,C&M-PMS Prem Healthcentre Rent,PRC DELEGATED CO-COMMISSIONING,NHS BARNSLEY CCG GP PRACTICE,30535019,"18,178.19"
Department of Health,NHS Barnsley CCG,31/01/2020,C&M-PMS Prem Notional Rent,PRC DELEGATED CO-COMMISSIONING,NHS BARNSLEY CCG GP PRACTICE,30535019,"1,987.50"
Department of Health,NHS Barnsley CCG,31/01/2020,C&M-PMS Prem Rates,PRC DELEGATED CO-COMMISSIONING,NHS BARNSLEY CCG GP PRACTICE,30535019,360.61
Department of Health,NHS Barnsley CCG,31/01/2020,C&M-PMS QOF Aspiration,PRC DELEGATED CO-COMMISSIONING,NHS BARNSLEY CCG GP PRACTICE,30535019,"10,450.25"
Department of Health,NHS Barnsley CCG,31/01/2020,C&M-PMS Contract Value,PRC DELEGATED CO-COMMISSIONING,NHS BARNSLEY CCG GP PRACTICE,30535023,"57,129.77"
Department of Health,NHS Barnsley CCG,31/01/2020,C&M-PMS PCN DES Participation,PRC DELEGATED CO-COMMISSIONING,NHS BARNSLEY CCG GP PRACTICE,30535023,"1,084.83"
Department of Health,NHS Barnsley CCG,31/01/2020,C&M-PMS Prem Healthcentre Rent,PRC DELEGATED CO-COMMISSIONING,NHS BARNSLEY CCG GP PRACTICE,30535023,"21,474.28"
Department of Health,NHS Barnsley CCG,31/01/2020,C&M-PMS QOF Aspiration,PRC DELEGATED CO-COMMISSIONING,NHS BARNSLEY CCG GP PRACTICE,30535023,"5,320.13"
Department of Health,NHS Barnsley CCG,31/01/2020,C&M-GMS DES Minor Surgery,PRC DELEGATED CO-COMMISSIONING,NHS BARNSLEY CCG GP PRACTICE,30799009,"1,079.71"
Department of Health,NHS Barnsley CCG,31/01/2020,C&M-GMS Global Sum,PRC DELEGATED CO-COMMISSIONING,NHS BARNSLEY CCG GP PRACTICE,30799009,"77,160.94"
Department of Health,NHS Barnsley CCG,31/01/2020,C&M-GMS PCN DES Participation,PRC DELEGATED CO-COMMISSIONING,NHS BARNSLEY CCG GP PRACTICE,30799009,"1,574.13"
Department of Health,NHS Barnsley CCG,31/01/2020,C&M-GMS PCO Other,PRC DELEGATED CO-COMMISSIONING,NHS BARNSLEY CCG GP PRACTICE,30799009,204.97
Department of Health,NHS Barnsley CCG,31/01/2020,C&M-GMS Prem Notional Rent,PRC DELEGATED CO-COMMISSIONING,NHS BARNSLEY CCG GP PRACTICE,30799009,"4,658.33"
Department of Health,NHS Barnsley CCG,31/01/2020,C&M-GMS Prem Rates,PRC DELEGATED CO-COMMISSIONING,NHS BARNSLEY CCG GP PRACTICE,30799009,439.33
Department of Health,NHS Barnsley CCG,31/01/2020,C&M-GMS QOF Aspiration,PRC DELEGATED CO-COMMISSIONING,NHS BARNSLEY CCG GP PRACTICE,30799009,"8,124.94"
Department of Health,NHS Barnsley CCG,31/01/2020,C&M-PMS Contract Value,PRC DELEGATED CO-COMMISSIONING,NHS BARNSLEY CCG GP PRACTICE,30535026,-544.62
Department of Health,NHS Barnsley CCG,31/01/2020,C&M-PMS GP Statutory Levy,PRC DELEGATED CO-COMMISSIONING,NHS BARNSLEY CCG GP PRACTICE,30535026,-569.63
Department of Health,NHS Barnsley CCG,31/01/2020,C&M-PMS Out of Hours Opt Outs,PRC DELEGATED CO-COMMISSIONING,NHS BARNSLEY CCG GP PRACTICE,30535026,"-6,398.57"
Department of Health,NHS Barnsley CCG,31/01/2020,C&M-PMS Voluntary Levy,PRC DELEGATED CO-COMMISSIONING,NHS BARNSLEY CCG GP PRACTICE,30535026,-99.69
Department of Health,NHS Barnsley CCG,31/01/2020,ME - PMS GP Prior Year ERs,PRC DELEGATED CO-COMMISSIONING,NHS BARNSLEY CCG GP PRACTICE,30535026,-284.09
Department of Health,NHS Barnsley CCG,31/01/2020,ME-PMS GP Pension EEs Adjs - PMS,PRC DELEGATED CO-COMMISSIONING,NHS BARNSLEY CCG GP PRACTICE,30535026,"-2,250.00"
Department of Health,NHS Barnsley CCG,31/01/2020,ME-PMS GP Pension EEs-PMS,PRC DELEGATED CO-COMMISSIONING,NHS BARNSLEY CCG GP PRACTICE,30535026,"-8,579.17"
Department of Health,NHS Barnsley CCG,31/01/2020,ME-PMS GP Pension ERs Adjs - PMS,PRC DELEGATED CO-COMMISSIONING,NHS BARNSLEY CCG GP PRACTICE,30535026,"-11,096.57"
Department of Health,NHS Barnsley CCG,31/01/2020,ME-PMS GP Prior Year EEs,PRC DELEGATED CO-COMMISSIONING,NHS BARNSLEY CCG GP PRACTICE,30535026,-246.91
Department of Health,NHS Barnsley CCG,31/01/2020,C&M-PMS Contract Value,PRC DELEGATED CO-COMMISSIONING,NHS BARNSLEY CCG GP PRACTICE,30561995,"135,717.64"
Department of Health,NHS Barnsley CCG,31/01/2020,C&M-PMS Cost of Drugs -Prescribing,LOCAL ENHANCED SERVICES,NHS BARNSLEY CCG GP PRACTICE,30561995,"5,940.55"
Department of Health,NHS Barnsley CCG,31/01/2020,C&M-PMS Out of Hours Opt Outs,PRC DELEGATED CO-COMMISSIONING,NHS BARNSLEY CCG GP PRACTICE,30561995,25.67
Department of Health,NHS Barnsley CCG,31/01/2020,C&M-PMS PCN DES Participation,PRC DELEGATED CO-COMMISSIONING,NHS BARNSLEY CCG GP PRACTICE,30561995,"2,600.20"
Department of Health,NHS Barnsley CCG,31/01/2020,C&M-PMS Prem Actual Rent,PRC DELEGATED CO-COMMISSIONING,NHS BARNSLEY CCG GP PRACTICE,30561995,"24,600.00"
Department of Health,NHS Barnsley CCG,31/01/2020,C&M-PMS Prem Notional Rent,PRC DELEGATED CO-COMMISSIONING,NHS BARNSLEY CCG GP PRACTICE,30561995,"6,333.33"
Department of Health,NHS Barnsley CCG,31/01/2020,C&M-PMS Prem Rates,PRC DELEGATED CO-COMMISSIONING,NHS BARNSLEY CCG GP PRACTICE,30561995,"2,165.00"
Department of Health,NHS Barnsley CCG,31/01/2020,C&M-PMS Prof fees Prescribing,PRC DELEGATED CO-COMMISSIONING,NHS BARNSLEY CCG GP PRACTICE,30561995,"1,960.17"
Department of Health,NHS Barnsley CCG,31/01/2020,C&M-PMS QOF Aspiration,PRC DELEGATED CO-COMMISSIONING,NHS BARNSLEY CCG GP PRACTICE,30561995,"13,813.79"
Department of Health,NHS Barnsley CCG,31/01/2020,C&M-PMS Cost of Drugs -Dispensing,LOCAL ENHANCED SERVICES,NHS BARNSLEY CCG GP PRACTICE,30822059,"-83,857.02"
Department of Health,NHS Barnsley CCG,31/01/2020,C&M-PMS Prsc Chrgs Cll&Rmttd by GPs,PRC DELEGATED CO-COMMISSIONING,NHS BARNSLEY CCG GP PRACTICE,30822059,"-4,257.00"
Department of Health,NHS Barnsley CCG,31/01/2020,C&M-PMS Cost of Drugs -Dispensing,LOCAL ENHANCED SERVICES,NHS BARNSLEY CCG GP PRACTICE,30822060,"150,160.27"
Department of Health,NHS Barnsley CCG,31/01/2020,C&M-PMS Prof fees Dispensing,PRC DELEGATED CO-COMMISSIONING,NHS BARNSLEY CCG GP PRACTICE,30822060,"20,687.95"
Department of Health,NHS Barnsley CCG,31/01/2020,C&M-PMS Prsc Chrgs Cll&Rmttd by GPs,LOCAL ENHANCED SERVICES,NHS BARNSLEY CCG GP PRACTICE,30822060,"4,257.00"
Department of Health,NHS Barnsley CCG,31/01/2020,C&M-GMS Global Sum,PRC DELEGATED CO-COMMISSIONING,NHS BARNSLEY CCG GP PRACTICE,30803807,"24,786.59"
Department of Health,NHS Barnsley CCG,31/01/2020,C&M-GMS MPIG Correction Factor,PRC DELEGATED CO-COMMISSIONING,NHS BARNSLEY CCG GP PRACTICE,30803807,202.40
Department of Health,NHS Barnsley CCG,31/01/2020,C&M-GMS PCN DES Participation,PRC DELEGATED CO-COMMISSIONING,NHS BARNSLEY CCG GP PRACTICE,30803807,481.53
Department of Health,NHS Barnsley CCG,31/01/2020,C&M-GMS PCO Other,PRC DELEGATED CO-COMMISSIONING,NHS BARNSLEY CCG GP PRACTICE,30803807,75.83
Department of Health,NHS Barnsley CCG,31/01/2020,C&M-GMS Prem Healthcentre Rent,PRC DELEGATED CO-COMMISSIONING,NHS BARNSLEY CCG GP PRACTICE,30803807,"1,512.79"
Department of Health,NHS Barnsley CCG,31/01/2020,C&M-GMS QOF Aspiration,PRC DELEGATED CO-COMMISSIONING,NHS BARNSLEY CCG GP PRACTICE,30803807,"2,460.63"
Department of Health,NHS Barnsley CCG,31/01/2020,C&M-GMS Global Sum,PRC DELEGATED CO-COMMISSIONING,NHS BARNSLEY CCG GP PRACTICE,30799010,"43,155.15"
Department of Health,NHS Barnsley CCG,31/01/2020,C&M-GMS PCN DES Participation,PRC DELEGATED CO-COMMISSIONING,NHS BARNSLEY CCG GP PRACTICE,30799010,847.50
Department of Health,NHS Barnsley CCG,31/01/2020,C&M-GMS Prem Actual Rent,PRC DELEGATED CO-COMMISSIONING,NHS BARNSLEY CCG GP PRACTICE,30799010,"3,297.92"
Department of Health,NHS Barnsley CCG,31/01/2020,C&M-GMS Prem Notional Rent,PRC DELEGATED CO-COMMISSIONING,NHS BARNSLEY CCG GP PRACTICE,30799010,"1,681.25"
Department of Health,NHS Barnsley CCG,31/01/2020,C&M-GMS Prem Rates,PRC DELEGATED CO-COMMISSIONING,NHS BARNSLEY CCG GP PRACTICE,30799010,"1,222.00"
Department of Health,NHS Barnsley CCG,31/01/2020,C&M-GMS QOF Aspiration,PRC DELEGATED CO-COMMISSIONING,NHS BARNSLEY CCG GP PRACTICE,30799010,"4,009.16"
Department of Health,NHS Barnsley CCG,31/01/2020,C&M-PMS Contract Value,PRC DELEGATED CO-COMMISSIONING,NHS BARNSLEY CCG GP PRACTICE,30535025,"39,002.92"
Department of Health,NHS Barnsley CCG,31/01/2020,C&M-PMS Out of Hours Opt Outs,PRC DELEGATED CO-COMMISSIONING,NHS BARNSLEY CCG GP PRACTICE,30535025,23.01
Department of Health,NHS Barnsley CCG,31/01/2020,C&M-PMS PCN DES Participation,PRC DELEGATED CO-COMMISSIONING,NHS BARNSLEY CCG GP PRACTICE,30535025,742.47
Department of Health,NHS Barnsley CCG,31/01/2020,C&M-PMS Prem Healthcentre Rent,PRC DELEGATED CO-COMMISSIONING,NHS BARNSLEY CCG GP PRACTICE,30535025,"3,596.62"
Department of Health,NHS Barnsley CCG,31/01/2020,C&M-PMS Prem Notional Rent,PRC DELEGATED CO-COMMISSIONING,NHS BARNSLEY CCG GP PRACTICE,30535025,"8,808.34"
Department of Health,NHS Barnsley CCG,31/01/2020,C&M-PMS Prem Rates,PRC DELEGATED CO-COMMISSIONING,NHS BARNSLEY CCG GP PRACTICE,30535025,"1,550.59"
Department of Health,NHS Barnsley CCG,31/01/2020,C&M-PMS QOF Aspiration,PRC DELEGATED CO-COMMISSIONING,NHS BARNSLEY CCG GP PRACTICE,30535025,"2,732.54"
Department of Health,NHS Barnsley CCG,31/01/2020,C&M-GMS DES Minor Surgery,PRC DELEGATED CO-COMMISSIONING,NHS BARNSLEY CCG GP PRACTICE,30799015,"2,088.38"
Department of Health,NHS Barnsley CCG,31/01/2020,C&M-GMS Global Sum,PRC DELEGATED CO-COMMISSIONING,NHS BARNSLEY CCG GP PRACTICE,30799015,"110,379.16"
Department of Health,NHS Barnsley CCG,31/01/2020,C&M-GMS PCN DES Participation,PRC DELEGATED CO-COMMISSIONING,NHS BARNSLEY CCG GP PRACTICE,30799015,"2,254.50"
Department of Health,NHS Barnsley CCG,31/01/2020,C&M-GMS PCO Locum Sickness,PRC DELEGATED CO-COMMISSIONING,NHS BARNSLEY CCG GP PRACTICE,30799015,"2,327.23"
Department of Health,NHS Barnsley CCG,31/01/2020,C&M-GMS Prem Notional Rent,PRC DELEGATED CO-COMMISSIONING,NHS BARNSLEY CCG GP PRACTICE,30799015,"7,741.67"
Department of Health,NHS Barnsley CCG,31/01/2020,C&M-GMS Prem Rates,PRC DELEGATED CO-COMMISSIONING,NHS BARNSLEY CCG GP PRACTICE,30799015,793.00
Department of Health,NHS Barnsley CCG,31/01/2020,C&M-GMS QOF Aspiration,PRC DELEGATED CO-COMMISSIONING,NHS BARNSLEY CCG GP PRACTICE,30799015,"11,179.35"
Department of Health,NHS Barnsley CCG,31/01/2020,C&M-GMS Cost of Drugs -Dispensing,LOCAL ENHANCED SERVICES,NHS BARNSLEY CCG GP PRACTICE,30822063,"21,908.87"
Department of Health,NHS Barnsley CCG,31/01/2020,C&M-GMS Prof Fees Dispensing,PRC DELEGATED CO-COMMISSIONING,NHS BARNSLEY CCG GP PRACTICE,30822063,"4,433.19"
Department of Health,NHS Barnsley CCG,31/01/2020,C&M-GMS PrscrptnChrgsColl&RmttdbyGP,LOCAL ENHANCED SERVICES,NHS BARNSLEY CCG GP PRACTICE,30822063,144.00
Department of Health,NHS Barnsley CCG,31/01/2020,C&M-GMS GP Statutory Levy,PRC DELEGATED CO-COMMISSIONING,NHS BARNSLEY CCG GP PRACTICE,30799011,-400.47
Department of Health,NHS Barnsley CCG,31/01/2020,C&M-GMS Voluntary Levy,PRC DELEGATED CO-COMMISSIONING,NHS BARNSLEY CCG GP PRACTICE,30799011,-70.08
Department of Health,NHS Barnsley CCG,31/01/2020,ME-GMS GP Pension EEs,PRC DELEGATED CO-COMMISSIONING,NHS BARNSLEY CCG GP PRACTICE,30799011,"-18,807.65"
Department of Health,NHS Barnsley CCG,31/01/2020,ME-GMS GP Pension ERs Adjustments,PRC DELEGATED CO-COMMISSIONING,NHS BARNSLEY CCG GP PRACTICE,30799011,"-17,905.73"
Department of Health,NHS Barnsley CCG,31/01/2020,C&M-GMS DES Minor Surgery,PRC DELEGATED CO-COMMISSIONING,NHS BARNSLEY CCG GP PRACTICE,30799012,"1,562.73"
Department of Health,NHS Barnsley CCG,31/01/2020,C&M-GMS Global Sum,PRC DELEGATED CO-COMMISSIONING,NHS BARNSLEY CCG GP PRACTICE,30799012,"98,659.05"
Department of Health,NHS Barnsley CCG,31/01/2020,C&M-GMS PCN DES Participation,PRC DELEGATED CO-COMMISSIONING,NHS BARNSLEY CCG GP PRACTICE,30799012,"2,013.63"
Department of Health,NHS Barnsley CCG,31/01/2020,C&M-GMS Prem Notional Rent,PRC DELEGATED CO-COMMISSIONING,NHS BARNSLEY CCG GP PRACTICE,30799012,"13,593.75"
Department of Health,NHS Barnsley CCG,31/01/2020,C&M-GMS Prem Rates,PRC DELEGATED CO-COMMISSIONING,NHS BARNSLEY CCG GP PRACTICE,30799012,"1,031.18"
Department of Health,NHS Barnsley CCG,31/01/2020,C&M-GMS QOF Aspiration,PRC DELEGATED CO-COMMISSIONING,NHS BARNSLEY CCG GP PRACTICE,30799012,"9,651.42"
Department of Health,NHS Barnsley CCG,31/01/2020,ME - GMS GP Prior Year ERs,PRC DELEGATED CO-COMMISSIONING,NHS BARNSLEY CCG GP PRACTICE,30799012,"9,400.87"
Department of Health,NHS Barnsley CCG,31/01/2020,ME-GMS GP Prior Year EEs,PRC DELEGATED CO-COMMISSIONING,NHS BARNSLEY CCG GP PRACTICE,30799012,"12,017.12"
Department of Health,NHS Barnsley CCG,31/01/2020,C&M-GMS Global Sum,PRC DELEGATED CO-COMMISSIONING,NHS BARNSLEY CCG GP PRACTICE,30799018,"82,779.03"
Department of Health,NHS Barnsley CCG,31/01/2020,C&M-GMS PCN DES Participation,PRC DELEGATED CO-COMMISSIONING,NHS BARNSLEY CCG GP PRACTICE,30799018,"1,684.26"
Department of Health,NHS Barnsley CCG,31/01/2020,C&M-GMS PCO Other,PRC DELEGATED CO-COMMISSIONING,NHS BARNSLEY CCG GP PRACTICE,30799018,214.73
Department of Health,NHS Barnsley CCG,31/01/2020,C&M-GMS Prem Actual Rent,PRC DELEGATED CO-COMMISSIONING,NHS BARNSLEY CCG GP PRACTICE,30799018,"14,050.00"
Department of Health,NHS Barnsley CCG,31/01/2020,C&M-GMS Prem Rates,PRC DELEGATED CO-COMMISSIONING,NHS BARNSLEY CCG GP PRACTICE,30799018,816.06
Department of Health,NHS Barnsley CCG,31/01/2020,C&M-GMS QOF Aspiration,PRC DELEGATED CO-COMMISSIONING,NHS BARNSLEY CCG GP PRACTICE,30799018,"10,284.96"
Department of Health,NHS Barnsley CCG,31/01/2020,C&M-GMS PCO Other,PRC DELEGATED CO-COMMISSIONING,NHS BARNSLEY CCG GP PRACTICE,30807702,429.47
Department of Health,NHS Barnsley CCG,31/01/2020,C&M-GMS Prem Actual Rent,PRC DELEGATED CO-COMMISSIONING,NHS BARNSLEY CCG GP PRACTICE,30807702,"27,365.83"
Department of Health,NHS Barnsley CCG,31/01/2020,C&M-GMS Prem Rates,PRC DELEGATED CO-COMMISSIONING,NHS BARNSLEY CCG GP PRACTICE,30807702,"1,632.12"
Department of Health,NHS Barnsley CCG,31/01/2020,C&M-PMS Contract Value,PRC DELEGATED CO-COMMISSIONING,NHS BARNSLEY CCG GP PRACTICE,30535027,"-1,846.73"
Department of Health,NHS Barnsley CCG,31/01/2020,C&M-PMS GP Statutory Levy,PRC DELEGATED CO-COMMISSIONING,NHS BARNSLEY CCG GP PRACTICE,30535027,-570.83
Department of Health,NHS Barnsley CCG,31/01/2020,C&M-PMS Out of Hours Opt Outs,PRC DELEGATED CO-COMMISSIONING,NHS BARNSLEY CCG GP PRACTICE,30535027,"-7,071.78"
Department of Health,NHS Barnsley CCG,31/01/2020,C&M-PMS Prem Notional Rent,PRC DELEGATED CO-COMMISSIONING,NHS BARNSLEY CCG GP PRACTICE,30535027,"-2,079.76"
Department of Health,NHS Barnsley CCG,31/01/2020,C&M-PMS Voluntary Levy,PRC DELEGATED CO-COMMISSIONING,NHS BARNSLEY CCG GP PRACTICE,30535027,-99.90
Department of Health,NHS Barnsley CCG,31/01/2020,ME - PMS GP Prior Year ERs,PRC DELEGATED CO-COMMISSIONING,NHS BARNSLEY CCG GP PRACTICE,30535027,"-1,607.39"
Department of Health,NHS Barnsley CCG,31/01/2020,ME - PMS TPS Added Years Adj EEs,PRC DELEGATED CO-COMMISSIONING,NHS BARNSLEY CCG GP PRACTICE,30535027,-346.67
Department of Health,NHS Barnsley CCG,31/01/2020,ME-PMS GP Pension EEs-PMS,PRC DELEGATED CO-COMMISSIONING,NHS BARNSLEY CCG GP PRACTICE,30535027,"-8,968.36"
Department of Health,NHS Barnsley CCG,31/01/2020,ME-PMS GP Pension ERs Adjs - PMS,PRC DELEGATED CO-COMMISSIONING,NHS BARNSLEY CCG GP PRACTICE,30535027,"-9,509.37"
Department of Health,NHS Barnsley CCG,31/01/2020,ME-PMS GP Prior Year EEs,PRC DELEGATED CO-COMMISSIONING,NHS BARNSLEY CCG GP PRACTICE,30535027,"-1,397.26"
Department of Health,NHS Barnsley CCG,31/01/2020,C&M-PMS Contract Value,PRC DELEGATED CO-COMMISSIONING,NHS BARNSLEY CCG GP PRACTICE,30535028,"146,783.40"
Department of Health,NHS Barnsley CCG,31/01/2020,C&M-PMS Out of Hours Opt Outs,PRC DELEGATED CO-COMMISSIONING,NHS BARNSLEY CCG GP PRACTICE,30535028,89.41
Department of Health,NHS Barnsley CCG,31/01/2020,C&M-PMS PCN DES Participation,PRC DELEGATED CO-COMMISSIONING,NHS BARNSLEY CCG GP PRACTICE,30535028,"2,875.49"
Department of Health,NHS Barnsley CCG,31/01/2020,C&M-PMS PCO Other,PRC DELEGATED CO-COMMISSIONING,NHS BARNSLEY CCG GP PRACTICE,30535028,"1,042.90"
Department of Health,NHS Barnsley CCG,31/01/2020,C&M-PMS Prem Notional Rent,PRC DELEGATED CO-COMMISSIONING,NHS BARNSLEY CCG GP PRACTICE,30535028,"15,266.97"
Department of Health,NHS Barnsley CCG,31/01/2020,C&M-PMS Prem Rates,PRC DELEGATED CO-COMMISSIONING,NHS BARNSLEY CCG GP PRACTICE,30535028,"2,327.85"
Department of Health,NHS Barnsley CCG,31/01/2020,C&M-PMS QOF Aspiration,PRC DELEGATED CO-COMMISSIONING,NHS BARNSLEY CCG GP PRACTICE,30535028,"15,137.25"
Department of Health,NHS Barnsley CCG,31/01/2020,ME-PMS GP Pension EEs Adjs - PMS,PRC DELEGATED CO-COMMISSIONING,NHS BARNSLEY CCG GP PRACTICE,30535028,64.50
Department of Health,NHS Barnsley CCG,31/01/2020,C&M-PMS GP Statutory Levy,PRC DELEGATED CO-COMMISSIONING,NHS BARNSLEY CCG GP PRACTICE,30535029,-402.33
Department of Health,NHS Barnsley CCG,31/01/2020,C&M-PMS Out of Hours Opt Outs,PRC DELEGATED CO-COMMISSIONING,NHS BARNSLEY CCG GP PRACTICE,30535029,"-5,003.29"
Department of Health,NHS Barnsley CCG,31/01/2020,C&M-PMS Prem Rates,PRC DELEGATED CO-COMMISSIONING,NHS BARNSLEY CCG GP PRACTICE,30535029,-44.78
Department of Health,NHS Barnsley CCG,31/01/2020,C&M-PMS Voluntary Levy,PRC DELEGATED CO-COMMISSIONING,NHS BARNSLEY CCG GP PRACTICE,30535029,-70.41
Department of Health,NHS Barnsley CCG,31/01/2020,ME-PMS GP Pension EEs-PMS,PRC DELEGATED CO-COMMISSIONING,NHS BARNSLEY CCG GP PRACTICE,30535029,"-9,625.41"
Department of Health,NHS Barnsley CCG,31/01/2020,ME-PMS GP Pension ERs Adjs - PMS,PRC DELEGATED CO-COMMISSIONING,NHS BARNSLEY CCG GP PRACTICE,30535029,"-10,149.88"
Department of Health,NHS Barnsley CCG,31/01/2020,C&M-PMS Contract Value,PRC DELEGATED CO-COMMISSIONING,NHS BARNSLEY CCG GP PRACTICE,30535030,"103,856.24"
Department of Health,NHS Barnsley CCG,31/01/2020,C&M-PMS Cost of Drugs -Prescribing,LOCAL ENHANCED SERVICES,NHS BARNSLEY CCG GP PRACTICE,30535030,1.75
Department of Health,NHS Barnsley CCG,31/01/2020,C&M-PMS PCN DES Participation,PRC DELEGATED CO-COMMISSIONING,NHS BARNSLEY CCG GP PRACTICE,30535030,"2,013.74"
Department of Health,NHS Barnsley CCG,31/01/2020,C&M-PMS PCO Other,PRC DELEGATED CO-COMMISSIONING,NHS BARNSLEY CCG GP PRACTICE,30535030,726.40
Department of Health,NHS Barnsley CCG,31/01/2020,C&M-PMS Prem Actual Rent,PRC DELEGATED CO-COMMISSIONING,NHS BARNSLEY CCG GP PRACTICE,30535030,"13,333.33"
Department of Health,NHS Barnsley CCG,31/01/2020,C&M-PMS Prem Rates,PRC DELEGATED CO-COMMISSIONING,NHS BARNSLEY CCG GP PRACTICE,30535030,"3,276.00"
Department of Health,NHS Barnsley CCG,31/01/2020,C&M-PMS Prem Water Rates,PRC DELEGATED CO-COMMISSIONING,NHS BARNSLEY CCG GP PRACTICE,30535030,342.28
Department of Health,NHS Barnsley CCG,31/01/2020,C&M-PMS Prof fees Prescribing,PRC DELEGATED CO-COMMISSIONING,NHS BARNSLEY CCG GP PRACTICE,30535030,0.47
Department of Health,NHS Barnsley CCG,31/01/2020,C&M-PMS QOF Aspiration,PRC DELEGATED CO-COMMISSIONING,NHS BARNSLEY CCG GP PRACTICE,30535030,"10,812.71"
Department of Health,NHS Barnsley CCG,31/01/2020,C&M-PMS Contract Value,PRC DELEGATED CO-COMMISSIONING,NHS BARNSLEY CCG GP PRACTICE,30535032,"91,791.59"
Department of Health,NHS Barnsley CCG,31/01/2020,C&M-PMS Out of Hours Opt Outs,PRC DELEGATED CO-COMMISSIONING,NHS BARNSLEY CCG GP PRACTICE,30535032,6.00
Department of Health,NHS Barnsley CCG,31/01/2020,C&M-PMS PCN DES Participation,PRC DELEGATED CO-COMMISSIONING,NHS BARNSLEY CCG GP PRACTICE,30535032,"1,787.42"
Department of Health,NHS Barnsley CCG,31/01/2020,C&M-PMS PCO Other,PRC DELEGATED CO-COMMISSIONING,NHS BARNSLEY CCG GP PRACTICE,30535032,709.80
Department of Health,NHS Barnsley CCG,31/01/2020,C&M-PMS Prem Actual Rent,PRC DELEGATED CO-COMMISSIONING,NHS BARNSLEY CCG GP PRACTICE,30535032,"8,566.67"
Department of Health,NHS Barnsley CCG,31/01/2020,C&M-PMS Prem Rates,PRC DELEGATED CO-COMMISSIONING,NHS BARNSLEY CCG GP PRACTICE,30535032,"2,080.00"
Department of Health,NHS Barnsley CCG,31/01/2020,C&M-PMS QOF Aspiration,PRC DELEGATED CO-COMMISSIONING,NHS BARNSLEY CCG GP PRACTICE,30535032,"7,216.95"
Department of Health,NHS Barnsley CCG,31/01/2020,C&M-GMS DES Minor Surgery,PRC DELEGATED CO-COMMISSIONING,NHS BARNSLEY CCG GP PRACTICE,30799021,355.17
Department of Health,NHS Barnsley CCG,31/01/2020,C&M-GMS Global Sum,PRC DELEGATED CO-COMMISSIONING,NHS BARNSLEY CCG GP PRACTICE,30799021,"58,166.33"
Department of Health,NHS Barnsley CCG,31/01/2020,C&M-GMS PCN DES Participation,PRC DELEGATED CO-COMMISSIONING,NHS BARNSLEY CCG GP PRACTICE,30799021,"1,187.90"
Department of Health,NHS Barnsley CCG,31/01/2020,C&M-GMS Prem Healthcentre Rent,PRC DELEGATED CO-COMMISSIONING,NHS BARNSLEY CCG GP PRACTICE,30799021,"24,538.12"
Department of Health,NHS Barnsley CCG,31/01/2020,C&M-GMS QOF Aspiration,PRC DELEGATED CO-COMMISSIONING,NHS BARNSLEY CCG GP PRACTICE,30799021,"6,065.73"
Department of Health,NHS Barnsley CCG,31/01/2020,ME - GMS GP Prior Year ERs,PRC DELEGATED CO-COMMISSIONING,NHS BARNSLEY CCG GP PRACTICE,30799021,158.98
Department of Health,NHS Barnsley CCG,31/01/2020,ME-GMS GP Prior Year EEs,PRC DELEGATED CO-COMMISSIONING,NHS BARNSLEY CCG GP PRACTICE,30799021,"1,835.98"
Department of Health,NHS Barnsley CCG,31/01/2020,C&M-PMS Contract Value,PRC DELEGATED CO-COMMISSIONING,NHS BARNSLEY CCG GP PRACTICE,30535034,"105,067.65"
Department of Health,NHS Barnsley CCG,31/01/2020,C&M-PMS Out of Hours Opt Outs,PRC DELEGATED CO-COMMISSIONING,NHS BARNSLEY CCG GP PRACTICE,30535034,12.95
Department of Health,NHS Barnsley CCG,31/01/2020,C&M-PMS PCN DES Participation,PRC DELEGATED CO-COMMISSIONING,NHS BARNSLEY CCG GP PRACTICE,30535034,"2,041.60"
Department of Health,NHS Barnsley CCG,31/01/2020,C&M-PMS PCO Locum Adop/Pat/Mat,PRC DELEGATED CO-COMMISSIONING,NHS BARNSLEY CCG GP PRACTICE,30535034,"11,628.22"
Department of Health,NHS Barnsley CCG,31/01/2020,C&M-PMS Prem Actual Rent,PRC DELEGATED CO-COMMISSIONING,NHS BARNSLEY CCG GP PRACTICE,30535034,"55,281.25"
Department of Health,NHS Barnsley CCG,31/01/2020,C&M-PMS Prem Rates,PRC DELEGATED CO-COMMISSIONING,NHS BARNSLEY CCG GP PRACTICE,30535034,"3,513.00"
Department of Health,NHS Barnsley CCG,31/01/2020,C&M-PMS QOF Aspiration,PRC DELEGATED CO-COMMISSIONING,NHS BARNSLEY CCG GP PRACTICE,30535034,"11,217.47"
Department of Health,NHS Barnsley CCG,31/01/2020,ME - PMS GP Prior Year ERs,PRC DELEGATED CO-COMMISSIONING,NHS BARNSLEY CCG GP PRACTICE,30535034,174.36
Department of Health,NHS Barnsley CCG,31/01/2020,ME-PMS GP Prior Year EEs,PRC DELEGATED CO-COMMISSIONING,NHS BARNSLEY CCG GP PRACTICE,30535034,113.35
Department of Health,NHS Barnsley CCG,31/01/2020,C&M-GMS DES Minor Surgery,PRC DELEGATED CO-COMMISSIONING,NHS BARNSLEY CCG GP PRACTICE,30799030,"1,875.28"
Department of Health,NHS Barnsley CCG,31/01/2020,C&M-GMS Global Sum,PRC DELEGATED CO-COMMISSIONING,NHS BARNSLEY CCG GP PRACTICE,30799030,"50,755.73"
Department of Health,NHS Barnsley CCG,31/01/2020,C&M-GMS PCN DES Participation,PRC DELEGATED CO-COMMISSIONING,NHS BARNSLEY CCG GP PRACTICE,30799030,"1,018.56"
Department of Health,NHS Barnsley CCG,31/01/2020,C&M-GMS Prem Notional Rent,PRC DELEGATED CO-COMMISSIONING,NHS BARNSLEY CCG GP PRACTICE,30799030,"2,750.00"
Department of Health,NHS Barnsley CCG,31/01/2020,C&M-GMS Prem Rates,PRC DELEGATED CO-COMMISSIONING,NHS BARNSLEY CCG GP PRACTICE,30799030,565.00
Department of Health,NHS Barnsley CCG,31/01/2020,C&M-GMS QOF Aspiration,PRC DELEGATED CO-COMMISSIONING,NHS BARNSLEY CCG GP PRACTICE,30799030,"3,844.61"
Department of Health,NHS Barnsley CCG,31/01/2020,C&M-PMS Contract Value,PRC DELEGATED CO-COMMISSIONING,NHS BARNSLEY CCG GP PRACTICE,30535048,"42,391.35"
Department of Health,NHS Barnsley CCG,31/01/2020,C&M-PMS Out of Hours Opt Outs,PRC DELEGATED CO-COMMISSIONING,NHS BARNSLEY CCG GP PRACTICE,30535048,36.05
Department of Health,NHS Barnsley CCG,31/01/2020,C&M-PMS PCN DES Participation,PRC DELEGATED CO-COMMISSIONING,NHS BARNSLEY CCG GP PRACTICE,30535048,799.36
Department of Health,NHS Barnsley CCG,31/01/2020,C&M-PMS PCO Other,PRC DELEGATED CO-COMMISSIONING,NHS BARNSLEY CCG GP PRACTICE,30535048,"3,486.00"
Department of Health,NHS Barnsley CCG,31/01/2020,C&M-PMS Prem Notional Rent,PRC DELEGATED CO-COMMISSIONING,NHS BARNSLEY CCG GP PRACTICE,30535048,"24,437.50"
Department of Health,NHS Barnsley CCG,31/01/2020,C&M-PMS Prem Rates,PRC DELEGATED CO-COMMISSIONING,NHS BARNSLEY CCG GP PRACTICE,30535048,"3,500.00"
Department of Health,NHS Barnsley CCG,31/01/2020,C&M-PMS QOF Aspiration,PRC DELEGATED CO-COMMISSIONING,NHS BARNSLEY CCG GP PRACTICE,30535048,"4,070.72"
Department of Health,NHS Barnsley CCG,31/01/2020,Soc Care-Bed-Based Int Care Servs,INTERMEDIATE CARE,HIGHSTONE MEWS CARE HOME,30572149,"32,151.43"
Department of Health,NHS Barnsley CCG,31/01/2020,Apprenticeship Levy Payable,BALANCE SHEET,HMRC,30633007,"1,238.00"
Department of Health,NHS Barnsley CCG,31/01/2020,Income tax <1Yr,BALANCE SHEET,HMRC,30633007,"72,774.40"
Department of Health,NHS Barnsley CCG,31/01/2020,Income tax <1Yr-Student Loans,BALANCE SHEET,HMRC,30633007,"2,191.00"
Department of Health,NHS Barnsley CCG,31/01/2020,National Insurance < 1 yr-NI- ERS,BALANCE SHEET,HMRC,30633007,"53,087.04"
Department of Health,NHS Barnsley CCG,31/01/2020,National Insurance < 1 yr-NI-EES,BALANCE SHEET,HMRC,30633007,"39,541.81"
Department of Health,NHS Barnsley CCG,31/01/2020,Post Graduate Loan Payable,BALANCE SHEET,HMRC,30633007,21.00
Department of Health,NHS Barnsley CCG,31/01/2020,Statutory Mat Pay < 1 yr,BALANCE SHEET,HMRC,30633007,-683.95
Department of Health,NHS Barnsley CCG,31/01/2020,C&M-GMS DES Minor Surgery,PRC DELEGATED CO-COMMISSIONING,NHS BARNSLEY CCG GP PRACTICE,30803809,"1,037.09"
Department of Health,NHS Barnsley CCG,31/01/2020,C&M-GMS Global Sum,PRC DELEGATED CO-COMMISSIONING,NHS BARNSLEY CCG GP PRACTICE,30803809,"96,424.38"
Department of Health,NHS Barnsley CCG,31/01/2020,C&M-GMS PCN DES Participation,PRC DELEGATED CO-COMMISSIONING,NHS BARNSLEY CCG GP PRACTICE,30803809,"1,967.78"
Department of Health,NHS Barnsley CCG,31/01/2020,C&M-GMS Prem Healthcentre Rent,PRC DELEGATED CO-COMMISSIONING,NHS BARNSLEY CCG GP PRACTICE,30803809,"39,576.01"
Department of Health,NHS Barnsley CCG,31/01/2020,C&M-GMS QOF Aspiration,PRC DELEGATED CO-COMMISSIONING,NHS BARNSLEY CCG GP PRACTICE,30803809,"9,168.58"
Department of Health,NHS Barnsley CCG,31/01/2020,C&M-GMS DES Minor Surgery,PRC DELEGATED CO-COMMISSIONING,NHS BARNSLEY CCG GP PRACTICE,30799033,"1,051.29"
Department of Health,NHS Barnsley CCG,31/01/2020,C&M-GMS Global Sum,PRC DELEGATED CO-COMMISSIONING,NHS BARNSLEY CCG GP PRACTICE,30799033,"91,558.17"
Department of Health,NHS Barnsley CCG,31/01/2020,C&M-GMS PCN DES Participation,PRC DELEGATED CO-COMMISSIONING,NHS BARNSLEY CCG GP PRACTICE,30799033,"1,845.99"
Department of Health,NHS Barnsley CCG,31/01/2020,C&M-GMS Prem Healthcentre Rent,PRC DELEGATED CO-COMMISSIONING,NHS BARNSLEY CCG GP PRACTICE,30799033,"21,846.34"
Department of Health,NHS Barnsley CCG,31/01/2020,C&M-GMS Prem Notional Rent,PRC DELEGATED CO-COMMISSIONING,NHS BARNSLEY CCG GP PRACTICE,30799033,"1,466.67"
Department of Health,NHS Barnsley CCG,31/01/2020,C&M-GMS QOF Aspiration,PRC DELEGATED CO-COMMISSIONING,NHS BARNSLEY CCG GP PRACTICE,30799033,"10,019.14"
Department of Health,NHS Barnsley CCG,31/01/2020,C&M-PMS Contract Value,PRC DELEGATED CO-COMMISSIONING,NHS BARNSLEY CCG GP PRACTICE,30535036,"50,882.51"
Department of Health,NHS Barnsley CCG,31/01/2020,C&M-PMS Out of Hours Opt Outs,PRC DELEGATED CO-COMMISSIONING,NHS BARNSLEY CCG GP PRACTICE,30535036,25.48
Department of Health,NHS Barnsley CCG,31/01/2020,C&M-PMS PCN DES Participation,PRC DELEGATED CO-COMMISSIONING,NHS BARNSLEY CCG GP PRACTICE,30535036,970.05
Department of Health,NHS Barnsley CCG,31/01/2020,C&M-PMS Prem Healthcentre Rent,PRC DELEGATED CO-COMMISSIONING,NHS BARNSLEY CCG GP PRACTICE,30535036,"5,961.99"
Department of Health,NHS Barnsley CCG,31/01/2020,C&M-PMS Prem Notional Rent,PRC DELEGATED CO-COMMISSIONING,NHS BARNSLEY CCG GP PRACTICE,30535036,"3,666.67"
Department of Health,NHS Barnsley CCG,31/01/2020,C&M-PMS Prem Rates,PRC DELEGATED CO-COMMISSIONING,NHS BARNSLEY CCG GP PRACTICE,30535036,839.00
Department of Health,NHS Barnsley CCG,31/01/2020,C&M-PMS QOF Aspiration,PRC DELEGATED CO-COMMISSIONING,NHS BARNSLEY CCG GP PRACTICE,30535036,"5,136.89"
Department of Health,NHS Barnsley CCG,31/01/2020,C&M-PMS Contract Value,PRC DELEGATED CO-COMMISSIONING,NHS BARNSLEY CCG GP PRACTICE,30542120,"30,421.74"
Department of Health,NHS Barnsley CCG,31/01/2020,C&M-PMS Out of Hours Opt Outs,PRC DELEGATED CO-COMMISSIONING,NHS BARNSLEY CCG GP PRACTICE,30542120,0.95
Department of Health,NHS Barnsley CCG,31/01/2020,C&M-PMS PCN DES Participation,PRC DELEGATED CO-COMMISSIONING,NHS BARNSLEY CCG GP PRACTICE,30542120,570.89
Department of Health,NHS Barnsley CCG,31/01/2020,C&M-PMS Prem Notional Rent,PRC DELEGATED CO-COMMISSIONING,NHS BARNSLEY CCG GP PRACTICE,30542120,"4,333.33"
Department of Health,NHS Barnsley CCG,31/01/2020,C&M-PMS Prem Rates,PRC DELEGATED CO-COMMISSIONING,NHS BARNSLEY CCG GP PRACTICE,30542120,"1,300.00"
Department of Health,NHS Barnsley CCG,31/01/2020,C&M-PMS QOF Aspiration,PRC DELEGATED CO-COMMISSIONING,NHS BARNSLEY CCG GP PRACTICE,30542120,"2,166.21"
Department of Health,NHS Barnsley CCG,31/01/2020,C&M-PMS Cost of Drugs -Dispensing,LOCAL ENHANCED SERVICES,NHS BARNSLEY CCG GP PRACTICE,30828014,"25,167.29"
Department of Health,NHS Barnsley CCG,31/01/2020,C&M-PMS Prof fees Dispensing,PRC DELEGATED CO-COMMISSIONING,NHS BARNSLEY CCG GP PRACTICE,30828014,"4,259.75"
Department of Health,NHS Barnsley CCG,31/01/2020,C&M-PMS Prsc Chrgs Cll&Rmttd by GPs,LOCAL ENHANCED SERVICES,NHS BARNSLEY CCG GP PRACTICE,30828014,864.00
Department of Health,NHS Barnsley CCG,31/01/2020,C&M-APMS Contract Value,PRC DELEGATED CO-COMMISSIONING,NHS BARNSLEY CCG GP PRACTICE,30535040,"19,809.86"
Department of Health,NHS Barnsley CCG,31/01/2020,C&M-APMS OOH Opt Outs,PRC DELEGATED CO-COMMISSIONING,NHS BARNSLEY CCG GP PRACTICE,30535040,1.54
Department of Health,NHS Barnsley CCG,31/01/2020,C&M-APMS PCN DES Participation,PRC DELEGATED CO-COMMISSIONING,NHS BARNSLEY CCG GP PRACTICE,30535040,378.75
Department of Health,NHS Barnsley CCG,31/01/2020,C&M-APMS Prem Healthcentre Rent,PRC DELEGATED CO-COMMISSIONING,NHS BARNSLEY CCG GP PRACTICE,30535040,"4,986.28"
Department of Health,NHS Barnsley CCG,31/01/2020,C&M-PMS QOF Aspiration,PRC DELEGATED CO-COMMISSIONING,NHS BARNSLEY CCG GP PRACTICE,30535040,"1,724.79"
Department of Health,NHS Barnsley CCG,31/01/2020,Hcare Srv Rec NHS Trust-CQUIN,ACUTE COMMISSIONING,LEEDS TEACHING HOSPITALS NHS TRUST,30498756,"1,010.00"
Department of Health,NHS Barnsley CCG,31/01/2020,Hcare Srv Rec NHS Trust-Contract Baseline,ACUTE COMMISSIONING,LEEDS TEACHING HOSPITALS NHS TRUST,30498756,"97,982.00"
Department of Health,NHS Barnsley CCG,31/01/2020,Hcare Srv Rec NHS Trust-CQUIN,ACUTE COMMISSIONING,MID YORKSHIRE HOSPITALS NHS TRUST,30504006,"1,516.00"
Department of Health,NHS Barnsley CCG,31/01/2020,Hcare Srv Rec NHS Trust-Contract Baseline,ACUTE COMMISSIONING,MID YORKSHIRE HOSPITALS NHS TRUST,30504006,"303,646.00"
Department of Health,NHS Barnsley CCG,31/01/2020,C&M-GMS Prem Other,PRC DELEGATED CO-COMMISSIONING,NHS ENGLAND,30763530,"1,122.30"
Department of Health,NHS Barnsley CCG,31/01/2020,Clinical&Medical-Commercial Sector,ACUTE COMMISSIONING,ONEHEALTH GROUP,30708907,"138,084.91"
Department of Health,NHS Barnsley CCG,31/01/2020,Other Transport Costs,PATIENT TRANSPORT,PREMIER CARE DIRECT LTD,30498748,"35,025.67"
Department of Health,NHS Barnsley CCG,31/01/2020,Hcare Srv Rec Fdtn Trust-CQUIN,COMMUNITY SERVICES,ROTHERHAM NHS FOUNDATION TRUST,30597281,530.00
Department of Health,NHS Barnsley CCG,31/01/2020,Hcare Srv Rec Fdtn Trust-Contract Baseline,COMMUNITY SERVICES,ROTHERHAM NHS FOUNDATION TRUST,30597281,"42,420.00"
Department of Health,NHS Barnsley CCG,31/01/2020,Hcare Srv Rec Fdtn Trust-CQUIN,ACUTE COMMISSIONING,ROTHERHAM NHS FOUNDATION TRUST,30597284,"2,339.00"
Department of Health,NHS Barnsley CCG,31/01/2020,Hcare Srv Rec Fdtn Trust-Contract Baseline,ACUTE COMMISSIONING,ROTHERHAM NHS FOUNDATION TRUST,30597284,"410,225.00"
Department of Health,NHS Barnsley CCG,31/01/2020,C&M-GMS DES Minor Surgery,PRC DELEGATED CO-COMMISSIONING,NHS BARNSLEY CCG GP PRACTICE,30803811,468.82
Department of Health,NHS Barnsley CCG,31/01/2020,C&M-GMS Global Sum,PRC DELEGATED CO-COMMISSIONING,NHS BARNSLEY CCG GP PRACTICE,30803811,"61,941.49"
Department of Health,NHS Barnsley CCG,31/01/2020,C&M-GMS PCN DES Participation,PRC DELEGATED CO-COMMISSIONING,NHS BARNSLEY CCG GP PRACTICE,30803811,"1,280.72"
Department of Health,NHS Barnsley CCG,31/01/2020,C&M-GMS Prem Notional Rent,PRC DELEGATED CO-COMMISSIONING,NHS BARNSLEY CCG GP PRACTICE,30803811,"8,873.23"
Department of Health,NHS Barnsley CCG,31/01/2020,C&M-GMS Prem Rates,PRC DELEGATED CO-COMMISSIONING,NHS BARNSLEY CCG GP PRACTICE,30803811,890.00
Department of Health,NHS Barnsley CCG,31/01/2020,C&M-GMS Prem Water Rates,PRC DELEGATED CO-COMMISSIONING,NHS BARNSLEY CCG GP PRACTICE,30803811,32.32
Department of Health,NHS Barnsley CCG,31/01/2020,C&M-GMS QOF Aspiration,PRC DELEGATED CO-COMMISSIONING,NHS BARNSLEY CCG GP PRACTICE,30803811,"6,864.29"
Department of Health,NHS Barnsley CCG,31/12/2019,Hcare Srv Rec Fdtn Trust-CQUIN,ACUTE COMMISSIONING,SHEFFIELD CHILDRENS NHS FOUNDATION TRUST,30306264,966.00 
Department of Health,NHS Barnsley CCG,31/12/2019,Hcare Srv Rec Fdtn Trust-Contract Baseline,ACUTE COMMISSIONING,SHEFFIELD CHILDRENS NHS FOUNDATION TRUST,30306264,"156,749.67 "
Department of Health,NHS Barnsley CCG,31/12/2019,Hcare Srv Rec Fdtn Trust-Contract Baseline,CHILDREN AND YOUNG PERSONS PALLIATIVE CARE,SHEFFIELD CHILDRENS NHS FOUNDATION TRUST,30306264,964.33 
Department of Health,NHS Barnsley CCG,31/12/2019,Hcare Srv Rec Fdtn Trust-Contract Baseline,ACUTE COMMISSIONING,SHEFFIELD TEACHING HOSPITALS NHS FOUNDATION TRUST,30353445,"1,923,125.00 "
Department of Health,NHS Barnsley CCG,31/12/2019,Hcare Srv Rec Fdtn Trust-Contract Baseline,ACUTE COMMISSIONING,SHEFFIELD TEACHING HOSPITALS NHS FOUNDATION TRUST,30353450,"183,041.00 "
Department of Health,NHS Barnsley CCG,31/01/2020,Hcare Srv Rec Fdtn Trust-CQUIN,COMMUNITY SERVICES,SOUTH WEST YORKSHIRE PARTNERSHIP NHS FOUNDATION TRUST,30498805,"7,101.50"
Department of Health,NHS Barnsley CCG,31/01/2020,Hcare Srv Rec Fdtn Trust-CQUIN,LEARNING DIFFICULTIES,SOUTH WEST YORKSHIRE PARTNERSHIP NHS FOUNDATION TRUST,30498805,"1,089.50"
Department of Health,NHS Barnsley CCG,31/01/2020,Hcare Srv Rec Fdtn Trust-CQUIN,MENTAL HEALTH SERVICES - ADULTS,SOUTH WEST YORKSHIRE PARTNERSHIP NHS FOUNDATION TRUST,30498805,"12,122.50"
Department of Health,NHS Barnsley CCG,31/01/2020,Hcare Srv Rec Fdtn Trust-CQUIN,MENTAL HEALTH SERVICES - OLDER PEOPLE,SOUTH WEST YORKSHIRE PARTNERSHIP NHS FOUNDATION TRUST,30498805,"1,408.50"
Department of Health,NHS Barnsley CCG,31/01/2020,Hcare Srv Rec Fdtn Trust-Contract Baseline,COMMUNITY SERVICES,SOUTH WEST YORKSHIRE PARTNERSHIP NHS FOUNDATION TRUST,30498805,"1,136,201.00"
Department of Health,NHS Barnsley CCG,31/01/2020,Hcare Srv Rec Fdtn Trust-Contract Baseline,LEARNING DIFFICULTIES,SOUTH WEST YORKSHIRE PARTNERSHIP NHS FOUNDATION TRUST,30498805,"174,345.00"
Department of Health,NHS Barnsley CCG,31/01/2020,Hcare Srv Rec Fdtn Trust-Contract Baseline,MENTAL HEALTH SERVICES - ADULTS,SOUTH WEST YORKSHIRE PARTNERSHIP NHS FOUNDATION TRUST,30498805,"1,955,613.00"
Department of Health,NHS Barnsley CCG,31/01/2020,Hcare Srv Rec Fdtn Trust-Contract Baseline,MENTAL HEALTH SERVICES - OLDER PEOPLE,SOUTH WEST YORKSHIRE PARTNERSHIP NHS FOUNDATION TRUST,30498805,"239,751.00"
Department of Health,NHS Barnsley CCG,31/01/2020,Hcare Srv Rec Fdtn Trust-Non Contract,COMMUNITY SERVICES,SOUTH WEST YORKSHIRE PARTNERSHIP NHS FOUNDATION TRUST,30498805,"67,448.00"
Department of Health,NHS Barnsley CCG,31/01/2020,Hcare Srv Rec Fdtn Trust-CQUIN,COMMUNITY SERVICES,SOUTH WEST YORKSHIRE PARTNERSHIP NHS FOUNDATION TRUST,30498811,"3,814.00"
Department of Health,NHS Barnsley CCG,31/01/2020,Hcare Srv Rec Fdtn Trust-CQUIN,IMPROVING ACCESS TO PSYCHOLOGICAL THERAPIES,SOUTH WEST YORKSHIRE PARTNERSHIP NHS FOUNDATION TRUST,30498811,"1,266.00"
Department of Health,NHS Barnsley CCG,31/01/2020,Hcare Srv Rec Fdtn Trust-CQUIN,INTERMEDIATE CARE,SOUTH WEST YORKSHIRE PARTNERSHIP NHS FOUNDATION TRUST,30498811,"1,967.00"
Department of Health,NHS Barnsley CCG,31/01/2020,Hcare Srv Rec Fdtn Trust-CQUIN,LONG TERM CONDITIONS,SOUTH WEST YORKSHIRE PARTNERSHIP NHS FOUNDATION TRUST,30498811,947.00
Department of Health,NHS Barnsley CCG,31/01/2020,Hcare Srv Rec Fdtn Trust-Contract Baseline,COMMUNITY SERVICES,SOUTH WEST YORKSHIRE PARTNERSHIP NHS FOUNDATION TRUST,30498811,"610,226.00"
Department of Health,NHS Barnsley CCG,31/01/2020,Hcare Srv Rec Fdtn Trust-Contract Baseline,IMPROVING ACCESS TO PSYCHOLOGICAL THERAPIES,SOUTH WEST YORKSHIRE PARTNERSHIP NHS FOUNDATION TRUST,30498811,"202,499.00"
Department of Health,NHS Barnsley CCG,31/01/2020,Hcare Srv Rec Fdtn Trust-Contract Baseline,INTERMEDIATE CARE,SOUTH WEST YORKSHIRE PARTNERSHIP NHS FOUNDATION TRUST,30498811,"314,755.00"
Department of Health,NHS Barnsley CCG,31/01/2020,Hcare Srv Rec Fdtn Trust-Contract Baseline,LONG TERM CONDITIONS,SOUTH WEST YORKSHIRE PARTNERSHIP NHS FOUNDATION TRUST,30498811,"151,525.00"
Department of Health,NHS Barnsley CCG,31/01/2020,Hcare Srv Rec Fdtn Trust-Non Contract,MENTAL HEALTH SERVICES - NOT CONTRACTED ACTIVITY,SOUTH WEST YORKSHIRE PARTNERSHIP NHS FOUNDATION TRUST,30498968,"25,296.00"
Department of Health,NHS Barnsley CCG,31/01/2020,Clinical&Medical-Commercial Sector,NCAS/OATS,SPAMEDICA LTD,30651282,"89,890.97"
Department of Health,NHS Barnsley CCG,31/01/2020,Clinical&Medical-Commercial Sector,NCAS/OATS,SPAMEDICA LTD,30843868,"70,712.87"
Department of Health,NHS Barnsley CCG,31/01/2020,Hcare Srv Rec NHS Trust-Non Contract,NCAS/OATS,UNITED LINCOLNSHIRE HOSPITALS NHS TRUST,30619113,"116,103.63"
Department of Health,NHS Barnsley CCG,31/01/2020,C&M-PMS Contract Value,PRC DELEGATED CO-COMMISSIONING,NHS BARNSLEY CCG GP PRACTICE,30535038,"77,893.54"
Department of Health,NHS Barnsley CCG,31/01/2020,C&M-PMS PCN DES Participation,PRC DELEGATED CO-COMMISSIONING,NHS BARNSLEY CCG GP PRACTICE,30535038,"1,483.61"
Department of Health,NHS Barnsley CCG,31/01/2020,C&M-PMS Prem Actual Rent,PRC DELEGATED CO-COMMISSIONING,NHS BARNSLEY CCG GP PRACTICE,30535038,319.38
Department of Health,NHS Barnsley CCG,31/01/2020,C&M-PMS Prem Healthcentre Rent,PRC DELEGATED CO-COMMISSIONING,NHS BARNSLEY CCG GP PRACTICE,30535038,"21,462.45"
Department of Health,NHS Barnsley CCG,31/01/2020,C&M-PMS QOF Aspiration,PRC DELEGATED CO-COMMISSIONING,NHS BARNSLEY CCG GP PRACTICE,30535038,"6,461.55"
Department of Health,NHS Barnsley CCG,31/01/2020,C&M-PMS Contract Value,PRC DELEGATED CO-COMMISSIONING,NHS BARNSLEY CCG GP PRACTICE,30542118,"45,566.92"
Department of Health,NHS Barnsley CCG,31/01/2020,C&M-PMS Out of Hours Opt Outs,PRC DELEGATED CO-COMMISSIONING,NHS BARNSLEY CCG GP PRACTICE,30542118,17.92
Department of Health,NHS Barnsley CCG,31/01/2020,C&M-PMS PCN DES Participation,PRC DELEGATED CO-COMMISSIONING,NHS BARNSLEY CCG GP PRACTICE,30542118,878.38
Department of Health,NHS Barnsley CCG,31/01/2020,C&M-PMS PCO Other,PRC DELEGATED CO-COMMISSIONING,NHS BARNSLEY CCG GP PRACTICE,30542118,336.90
Department of Health,NHS Barnsley CCG,31/01/2020,C&M-PMS Prem Notional Rent,PRC DELEGATED CO-COMMISSIONING,NHS BARNSLEY CCG GP PRACTICE,30542118,"28,500.00"
Department of Health,NHS Barnsley CCG,31/01/2020,C&M-PMS Prem Rates,PRC DELEGATED CO-COMMISSIONING,NHS BARNSLEY CCG GP PRACTICE,30542118,"1,625.00"
Department of Health,NHS Barnsley CCG,31/01/2020,C&M-PMS QOF Aspiration,PRC DELEGATED CO-COMMISSIONING,NHS BARNSLEY CCG GP PRACTICE,30542118,"4,097.25"
Department of Health,NHS Barnsley CCG,31/01/2020,Hcare Srv Rec NHS Trust-Contract Baseline,AMBULANCE SERVICES,YORKSHIRE AMBULANCE SERVICE NHS TRUST,30498899,"728,818.00"
Department of Health,NHS Barnsley CCG,31/01/2020,Hcare Srv Rec NHS Trust-Contract Baseline,NHS 111,YORKSHIRE AMBULANCE SERVICE NHS TRUST,30498910,"65,235.31"
Department of Health,NHS Barnsley CCG,31/01/2020,Hcare Srv Rec NHS Trust-Contract Baseline,PATIENT TRANSPORT,YORKSHIRE AMBULANCE SERVICE NHS TRUST,30544804,"139,747.03"
Department of Health,NHS Barnsley CCG,31/01/2020,Cont Care-Mental Health (65+),CHC ADULT FULLY FUNDED,YOUR CARE PROVIDER,30572023,"27,872.85"
,,,,,,,"34,912,371.21"
